[Event "*** Titled Tuesday Blitz"]
[Site "Chess.com"]
[Date "2019.01.01"]
[Round "8"]
[White "viktorko131"]
[Black "BrianWall"]
[Result "0-1"]
[WhiteElo "2092"]
[BlackElo "2235"]
[TimeControl "180+2"]
[EndTime "14:59:02 PST"]
[Termination "BrianWall won by resignation"]

1. e4 {[%clk 0:03:01.1]} 1... e5 {[%clk 0:03:00.3]} 2. Nf3 {[%clk 0:03:01.3]}
2... Nc6 {[%clk 0:03:01.6]} 3. Bb5 {[%clk 0:03:02.1]} 3... Nf6 {[%clk
0:03:02.8]} 4. O-O {[%clk 0:02:59.2]} 4... Ng4 {[%clk 0:03:03.9]} 5. d3 {[%clk
0:02:23.9]} 5... Bc5 {[%clk 0:03:03.5]} 6. Bg5 {[%clk 0:01:58.5]} 6... f6 {[%clk
0:03:03.5]} 7. Bd2 {[%clk 0:01:58.3]} 7... a6 {[%clk 0:03:02.8]} 8. Bc4 {[%clk
0:01:52.9]} 8... d6 {[%clk 0:03:03.3]} 9. h3 {[%clk 0:01:27.3]} 9... h5 {[%clk
0:03:03.1]} 10. Nh4 {[%clk 0:00:46.9]} 10... g5 {[%clk 0:03:02.9]} 11. Nf5
{[%clk 0:00:39.9]} 11... Nd4 {[%clk 0:02:18.4]} 12. hxg4 {[%clk 0:00:32.4]}
12... hxg4 {[%clk 0:02:16.9]} 13. Qxg4 {[%clk 0:00:33]} 13... Nxf5 {[%clk
0:02:16.9]} 14. exf5 {[%clk 0:00:30.6]} 14... Rh4 {[%clk 0:02:16.3]} 15. Qf3
{[%clk 0:00:26.4]} 15... Ke7 {[%clk 0:02:15.7]} 16. g3 {[%clk 0:00:24.4]} 16...
g4 {[%clk 0:02:10.3]} 17. Qg2 {[%clk 0:00:18.9]} 17... Rh3 {[%clk 0:02:06.1]}
18. Nc3 {[%clk 0:00:18.6]} 18... Bxf5 {[%clk 0:02:02.6]} 19. Nd5+ {[%clk
0:00:15.9]} 19... Kd7 {[%clk 0:02:03.1]} 20. Be3 {[%clk 0:00:15.1]} 20... c6
{[%clk 0:01:55.2]} 21. Bxc5 {[%clk 0:00:15.9]} 21... cxd5 {[%clk 0:01:51.7]} 22.
Qxd5 {[%clk 0:00:16.1]} 22... Kc7 {[%clk 0:01:43.9]} 23. Be3 {[%clk 0:00:05.3]}
23... Qd7 {[%clk 0:01:33]} 24. Qg2 {[%clk 0:00:03.6]} 24... Rah8 {[%clk
0:01:32.5]} 25. f3 {[%clk 0:00:03.1]} 25... Qh7 {[%clk 0:01:21.6]} 26. fxg4
{[%clk 0:00:03.3]} 26... Bd7 {[%clk 0:01:13.2]} 27. Kf2 {[%clk 0:00:02.8]} 27...
Rh2 {[%clk 0:01:12.9]} 28. Rh1 {[%clk 0:00:03.4]} 28... Rxg2+ {[%clk 0:01:12.3]}
29. Kxg2 {[%clk 0:00:05.3]} 29... Qg7 {[%clk 0:01:13.4]} 30. Rxh8 {[%clk
0:00:06.1]} 30... Qxh8 {[%clk 0:01:14.3]} 31. Rf1 {[%clk 0:00:06]} 31... Bc6+
{[%clk 0:01:14.6]} 32. Kf2 {[%clk 0:00:04.8]} 32... Qh2+ {[%clk 0:01:12]} 33.
Ke1 {[%clk 0:00:06.1]} 33... Qxg3+ {[%clk 0:01:12.4]} 34. Kd2 {[%clk 0:00:04.6]}
34... Qg2+ {[%clk 0:01:12.8]} 35. Rf2 {[%clk 0:00:05.6]} 35... Qxg4 {[%clk
0:01:12.9]} 36. Rxf6 {[%clk 0:00:06.7]} 36... d5 {[%clk 0:01:09.8]} 37. Rf7+
{[%clk 0:00:05.9]} 37... Kd6 {[%clk 0:01:09.7]} 38. Bb3 {[%clk 0:00:04.4]} 38...
d4 {[%clk 0:01:04.7]} 39. Bf2 {[%clk 0:00:04.6]} 39... Bf3 {[%clk 0:01:00.6]}
40. Rf6+ {[%clk 0:00:04.7]} 40... Kd7 {[%clk 0:00:59]} 41. c3 {[%clk 0:00:02.9]}
41... Qg2 {[%clk 0:00:55.9]} 42. Ke1 {[%clk 0:00:02.9]} 42... Qh1+ {[%clk
0:00:53.3]} 43. Kd2 {[%clk 0:00:03.6]} 43... Qg2 {[%clk 0:00:53.9]} 44. Ke1
{[%clk 0:00:04.2]} 44... Bg4 {[%clk 0:00:51.9]} 45. Rf7+ {[%clk 0:00:04.6]}
45... Kc6 {[%clk 0:00:50]} 46. cxd4 {[%clk 0:00:05.5]} 46... exd4 {[%clk
0:00:48.4]} 47. Rf6+ {[%clk 0:00:05.8]} 47... Kc5 {[%clk 0:00:44.9]} 48. Rf4
{[%clk 0:00:05.4]} 48... Bf3 {[%clk 0:00:31.5]} 49. Bxd4+ {[%clk 0:00:05]} 49...
Kc6 {[%clk 0:00:29.3]} 50. Bf2 {[%clk 0:00:05]} 50... Bd5 {[%clk 0:00:27.1]} 51.
Rf6+ {[%clk 0:00:05.1]} 51... Kc7 {[%clk 0:00:25.6]} 52. Bxd5 {[%clk 0:00:03.5]}
52... Qxd5 {[%clk 0:00:25.4]} 53. Rf4 {[%clk 0:00:03.3]} 53... Qxd3 {[%clk
0:00:22.7]} 54. Rd4 {[%clk 0:00:02.6]} 54... Qb1+ {[%clk 0:00:22.7]} 55. Kd2
{[%clk 0:00:02.9]} 55... Qxb2+ {[%clk 0:00:23.4]} 56. Ke3 {[%clk 0:00:04.2]}
56... Qxa2 {[%clk 0:00:24]} 57. Bg3+ {[%clk 0:00:05.5]} 57... Kc6 {[%clk
0:00:22.9]} 58. Rh4 {[%clk 0:00:03.6]} 58... Qe6+ {[%clk 0:00:22.5]} 59. Kf4
{[%clk 0:00:04.3]} 59... a5 {[%clk 0:00:19.9]} 60. Bf2 {[%clk 0:00:04.7]} 60...
Qf6+ {[%clk 0:00:18.4]} 61. Kg3 {[%clk 0:00:05.8]} 61... Qc3+ {[%clk 0:00:18.7]}
62. Kg2 {[%clk 0:00:05.2]} 62... b5 {[%clk 0:00:18.9]} 63. Rh6+ {[%clk
0:00:04.6]} 63... Kd7 {[%clk 0:00:19]} 64. Rb6 {[%clk 0:00:03.5]} 64... b4
{[%clk 0:00:17.7]} 65. Ra6 {[%clk 0:00:02.5]} 65... Qc7 {[%clk 0:00:15.1]} 66.
Rh6 {[%clk 0:00:02.6]} 66... Qb7+ {[%clk 0:00:15.2]} 67. Kg1 {[%clk 0:00:03.1]}
67... Qd5 {[%clk 0:00:15.9]} 68. Rh7+ {[%clk 0:00:03.5]} 68... Kc6 {[%clk
0:00:16.5]} 69. Ra7 {[%clk 0:00:03.1]} 69... Kb5 {[%clk 0:00:16.2]} 70. Kf1
{[%clk 0:00:04]} 70... Qd1+ {[%clk 0:00:15.4]} 71. Kg2 {[%clk 0:00:04.2]} 71...
Qd5+ {[%clk 0:00:17.3]} 72. Kg3 {[%clk 0:00:03.8]} 72... a4 {[%clk 0:00:19.2]}
73. Kf4 {[%clk 0:00:04.4]} 73... Qc4+ {[%clk 0:00:17.9]} 74. Ke3 {[%clk
0:00:04.9]} 74... a3 {[%clk 0:00:18.3]} 75. Rb7+ {[%clk 0:00:04.3]} 75... Ka4
{[%clk 0:00:18.5]} 76. Be1 {[%clk 0:00:04.1]} 76... Qe6+ {[%clk 0:00:17.8]} 77.
Kf2 {[%clk 0:00:03.3]} 77... Qf5+ {[%clk 0:00:17.3]} 78. Kg1 {[%clk 0:00:03.7]}
78... Qg4+ {[%clk 0:00:17.3]} 79. Kf2 {[%clk 0:00:04.5]} 79... Qf5+ {[%clk
0:00:16.7]} 80. Kg1 {[%clk 0:00:05.2]} 80... Qe4 {[%clk 0:00:14.8]} 81. Rxb4+
{[%clk 0:00:05.1]} 81... Qxb4 {[%clk 0:00:15.1]} 82. Bxb4 {[%clk 0:00:06.1]}
82... Kxb4 {[%clk 0:00:15.9]} 0-1

[Event "*** Titled Tuesday Blitz"]
[Site "Chess.com"]
[Date "2019.01.01"]
[Round "8"]
[White "Nathan_Filgueiras"]
[Black "farzadbfd"]
[Result "0-1"]
[WhiteElo "2341"]
[BlackElo "2483"]
[TimeControl "180+2"]
[EndTime "14:59:04 PST"]
[Termination "farzadbfd won by resignation"]

1. e4 {[%clk 0:03:01.9]} 1... e5 {[%clk 0:02:59.8]} 2. Nf3 {[%clk 0:03:02.7]}
2... Nc6 {[%clk 0:02:57.6]} 3. Bc4 {[%clk 0:03:03.5]} 3... Bc5 {[%clk
0:02:57.9]} 4. O-O {[%clk 0:03:04.4]} 4... Nf6 {[%clk 0:02:59.2]} 5. d3 {[%clk
0:03:05.8]} 5... a6 {[%clk 0:03:00.1]} 6. Re1 {[%clk 0:03:05.3]} 6... d6 {[%clk
0:03:01.5]} 7. c3 {[%clk 0:03:05.3]} 7... h6 {[%clk 0:03:02.9]} 8. Bb3 {[%clk
0:03:04.9]} 8... O-O {[%clk 0:03:04.2]} 9. Nbd2 {[%clk 0:03:05.6]} 9... Be6
{[%clk 0:02:59.3]} 10. Bc2 {[%clk 0:03:04]} 10... d5 {[%clk 0:02:58]} 11. exd5
{[%clk 0:03:02.1]} 11... Nxd5 {[%clk 0:02:56]} 12. Nxe5 {[%clk 0:02:47.7]} 12...
Nxe5 {[%clk 0:02:56.6]} 13. Rxe5 {[%clk 0:02:49.6]} 13... Bd6 {[%clk 0:02:32.9]}
14. Re1 {[%clk 0:02:46.8]} 14... Qh4 {[%clk 0:02:31.7]} 15. Nf3 {[%clk
0:02:42.1]} 15... Qh5 {[%clk 0:02:33.3]} 16. d4 {[%clk 0:01:57.6]} 16... Bg4
{[%clk 0:02:31.8]} 17. h3 {[%clk 0:01:58.7]} 17... Bxf3 {[%clk 0:02:20.9]} 18.
Qxf3 {[%clk 0:01:58.7]} 18... Qxf3 {[%clk 0:02:21.4]} 19. gxf3 {[%clk
0:02:00.2]} 19... Nf4 {[%clk 0:02:21]} 20. h4 {[%clk 0:01:43.2]} 20... Rfe8
{[%clk 0:02:15.6]} 21. Bd2 {[%clk 0:01:35.4]} 21... h5 {[%clk 0:01:57.7]} 22.
Re4 {[%clk 0:01:11.8]} 22... Nd5 {[%clk 0:01:26.8]} 23. Rae1 {[%clk 0:01:06.8]}
23... Kf8 {[%clk 0:01:21.5]} 24. Kg2 {[%clk 0:01:03.7]} 24... Nf4+ {[%clk
0:01:16.7]} 25. Kf1 {[%clk 0:00:46.9]} 25... Nd5 {[%clk 0:01:17.3]} 26. a3
{[%clk 0:00:43.1]} 26... b5 {[%clk 0:00:56]} 27. Bb3 {[%clk 0:00:28.7]} 27...
Nb6 {[%clk 0:00:53.8]} 28. Kg2 {[%clk 0:00:27.2]} 28... Rab8 {[%clk 0:00:34.3]}
29. f4 {[%clk 0:00:21.8]} 29... f5 {[%clk 0:00:31]} 30. Rxe8+ {[%clk 0:00:22.3]}
30... Rxe8 {[%clk 0:00:31.1]} 31. Rxe8+ {[%clk 0:00:24]} 31... Kxe8 {[%clk
0:00:32.7]} 32. Kf3 {[%clk 0:00:22.6]} 32... Be7 {[%clk 0:00:31.1]} 33. Kg3
{[%clk 0:00:23.4]} 33... c6 {[%clk 0:00:28.4]} 34. Bd1 {[%clk 0:00:23.7]} 34...
g6 {[%clk 0:00:29]} 35. Bf3 {[%clk 0:00:24.8]} 35... Kd7 {[%clk 0:00:29.5]} 36.
Bc1 {[%clk 0:00:25.3]} 36... Bd6 {[%clk 0:00:23.5]} 37. Be2 {[%clk 0:00:25.4]}
37... Ke7 {[%clk 0:00:22.2]} 38. Bd3 {[%clk 0:00:25.8]} 38... Kd7 {[%clk
0:00:22.3]} 39. b3 {[%clk 0:00:24]} 39... Nd5 {[%clk 0:00:21.8]} 40. c4 {[%clk
0:00:21.8]} 40... Nf6 {[%clk 0:00:17.3]} 41. f3 {[%clk 0:00:21.2]} 41... Ne8
{[%clk 0:00:15.1]} 42. a4 {[%clk 0:00:21.6]} 42... bxa4 {[%clk 0:00:13.8]} 43.
bxa4 {[%clk 0:00:22.7]} 43... Nc7 {[%clk 0:00:15.5]} 44. c5 {[%clk 0:00:21.6]}
44... Be7 {[%clk 0:00:16.1]} 45. Bc4 {[%clk 0:00:21.7]} 45... Ke8 {[%clk
0:00:15]} 46. Bd2 {[%clk 0:00:22.3]} 46... Bf6 {[%clk 0:00:16.3]} 47. Ba5 {[%clk
0:00:21.7]} 47... Kd7 {[%clk 0:00:13.4]} 48. Bc3 {[%clk 0:00:16.5]} 48... Nd5
{[%clk 0:00:13.3]} 49. Bxd5 {[%clk 0:00:16.1]} 49... cxd5 {[%clk 0:00:14.8]} 50.
Bb2 {[%clk 0:00:16]} 50... Kc6 {[%clk 0:00:16.2]} 51. Bc3 {[%clk 0:00:17]} 51...
Kc7 {[%clk 0:00:17.5]} 52. Bb2 {[%clk 0:00:15.3]} 52... Kc6 {[%clk 0:00:19]} 53.
Ba1 {[%clk 0:00:15.6]} 53... Bd8 {[%clk 0:00:20.3]} 54. Kh3 {[%clk 0:00:15.9]}
54... Ba5 {[%clk 0:00:21.4]} 55. Kg2 {[%clk 0:00:15.9]} 55... Bd2 {[%clk
0:00:22.5]} 56. Kg3 {[%clk 0:00:17.2]} 56... Be1+ {[%clk 0:00:23.9]} 57. Kg2
{[%clk 0:00:17.9]} 57... Bxh4 {[%clk 0:00:24.7]} 58. Bc3 {[%clk 0:00:19.5]}
58... Bd8 {[%clk 0:00:24.8]} 59. Kh3 {[%clk 0:00:19.2]} 59... Bc7 {[%clk
0:00:26.1]} 60. Kg3 {[%clk 0:00:19.8]} 60... g5 {[%clk 0:00:27.6]} 61. Bd2
{[%clk 0:00:20.6]} 61... g4 {[%clk 0:00:06.4]} 62. fxg4 {[%clk 0:00:21.4]} 62...
hxg4 {[%clk 0:00:08.3]} 63. Be3 {[%clk 0:00:22.2]} 63... Bd8 {[%clk 0:00:09.7]}
64. Bd2 {[%clk 0:00:22.3]} 64... Bf6 {[%clk 0:00:11.2]} 65. Be3 {[%clk
0:00:23.8]} 65... Kd7 {[%clk 0:00:12.7]} 66. Kf2 {[%clk 0:00:24.3]} 66... Bh4+
{[%clk 0:00:13.2]} 67. Ke2 {[%clk 0:00:25.4]} 67... Ke6 {[%clk 0:00:14.4]} 68.
Kd3 {[%clk 0:00:26.8]} 68... Bd8 {[%clk 0:00:15.8]} 69. Bd2 {[%clk 0:00:26]}
69... Bc7 {[%clk 0:00:16.5]} 70. Kc2 {[%clk 0:00:27]} 70... Kf7 {[%clk
0:00:17.7]} 71. Kd3 {[%clk 0:00:28.2]} 71... Kg6 {[%clk 0:00:18.9]} 72. Ke3
{[%clk 0:00:29.6]} 72... Kh5 {[%clk 0:00:20.4]} 73. Be1 {[%clk 0:00:31]} 73...
Bb8 {[%clk 0:00:20.2]} 74. Bg3 {[%clk 0:00:31.6]} 74... Kg6 {[%clk 0:00:21.5]}
75. Bh4 {[%clk 0:00:31.6]} 75... Bc7 {[%clk 0:00:22.6]} 76. Be7 {[%clk
0:00:32.1]} 76... Kf7 {[%clk 0:00:23.8]} 77. Bh4 {[%clk 0:00:31.5]} 77... Ba5
{[%clk 0:00:24.9]} 78. Bg3 {[%clk 0:00:31.1]} 78... Ke6 {[%clk 0:00:26.1]} 79.
Bh4 {[%clk 0:00:30]} 79... Bc3 {[%clk 0:00:27.2]} 80. Bd8 {[%clk 0:00:30.5]}
80... Bb2 {[%clk 0:00:28.3]} 81. c6 {[%clk 0:00:30.7]} 81... Bc1+ {[%clk
0:00:28.9]} 82. Ke2 {[%clk 0:00:30.1]} 82... Bxf4 {[%clk 0:00:30.2]} 83. c7
{[%clk 0:00:30.7]} 83... Kd7 {[%clk 0:00:31]} 84. Kf2 {[%clk 0:00:26.5]} 84...
Bxc7 {[%clk 0:00:31.4]} 85. Bf6 {[%clk 0:00:28]} 85... f4 {[%clk 0:00:32.4]} 86.
Kg2 {[%clk 0:00:29]} 86... Ke6 {[%clk 0:00:33.4]} 87. Bg5 {[%clk 0:00:30.3]}
87... Kf5 {[%clk 0:00:34.4]} 88. Bh6 {[%clk 0:00:31.9]} 88... Ke4 {[%clk
0:00:35.6]} 89. Bg7 {[%clk 0:00:33.5]} 89... Bb6 {[%clk 0:00:36.8]} 0-1

[Event "*** Titled Tuesday Blitz"]
[Site "Chess.com"]
[Date "2019.01.01"]
[Round "8"]
[White "TrimitziosP7"]
[Black "Parhamov"]
[Result "1/2-1/2"]
[WhiteElo "2643"]
[BlackElo "2886"]
[TimeControl "180+2"]
[EndTime "14:59:26 PST"]
[Termination "Game drawn by agreement"]

1. Nf3 {[%clk 0:03:01.9]} 1... d5 {[%clk 0:03:00.9]} 2. c4 {[%clk 0:03:02.3]}
2... d4 {[%clk 0:03:01.2]} 3. g3 {[%clk 0:02:57.4]} 3... Nc6 {[%clk 0:03:01.3]}
4. Bg2 {[%clk 0:02:57.2]} 4... e5 {[%clk 0:03:01.9]} 5. d3 {[%clk 0:02:57.1]}
5... Nf6 {[%clk 0:02:58.1]} 6. O-O {[%clk 0:02:54]} 6... Be7 {[%clk 0:02:59.4]}
7. b4 {[%clk 0:02:48.3]} 7... Nxb4 {[%clk 0:02:49.2]} 8. Nxe5 {[%clk 0:02:46.4]}
8... O-O {[%clk 0:02:50]} 9. a3 {[%clk 0:02:43.6]} 9... Na6 {[%clk 0:02:50.1]}
10. Nd2 {[%clk 0:02:43.7]} 10... Nc5 {[%clk 0:02:50.5]} 11. Rb1 {[%clk
0:02:38.5]} 11... Nfd7 {[%clk 0:02:46.1]} 12. Ndf3 {[%clk 0:02:32]} 12... Nb6
{[%clk 0:02:43.1]} 13. Nd2 {[%clk 0:02:13.1]} 13... Nca4 {[%clk 0:02:33.9]} 14.
Qe1 {[%clk 0:01:50.4]} 14... Nc3 {[%clk 0:02:30.8]} 15. Ra1 {[%clk 0:01:49.9]}
15... a5 {[%clk 0:02:27.7]} 16. Ne4 {[%clk 0:01:41.1]} 16... Nxe4 {[%clk
0:02:20.7]} 17. Bxe4 {[%clk 0:01:43]} 17... f6 {[%clk 0:02:22.1]} 18. Nf3 {[%clk
0:01:36.9]} 18... f5 {[%clk 0:02:22.6]} 19. Bd5+ {[%clk 0:01:33]} 19... Nxd5
{[%clk 0:02:22.8]} 20. cxd5 {[%clk 0:01:34.9]} 20... Qxd5 {[%clk 0:02:24.7]} 21.
a4 {[%clk 0:01:31.3]} 21... c5 {[%clk 0:02:23.4]} 22. Bf4 {[%clk 0:01:30.8]}
22... Bd7 {[%clk 0:02:23.6]} 23. Qd2 {[%clk 0:01:29.4]} 23... Bf6 {[%clk
0:02:22]} 24. Qa2 {[%clk 0:01:16.4]} 24... Qxa2 {[%clk 0:02:12.5]} 25. Rxa2
{[%clk 0:01:18.3]} 25... Rfe8 {[%clk 0:02:13.4]} 26. Rb1 {[%clk 0:01:17.3]}
26... Bc6 {[%clk 0:02:10]} 27. Kf1 {[%clk 0:01:18.1]} 27... h6 {[%clk
0:02:02.6]} 28. Nd2 {[%clk 0:01:13]} 28... Bd8 {[%clk 0:02:02.2]} 29. Nc4 {[%clk
0:01:11.8]} 29... Bd5 {[%clk 0:01:57.6]} 30. Rc2 {[%clk 0:01:06.1]} 30... Bxc4
{[%clk 0:01:56.5]} 31. Rxc4 {[%clk 0:01:08]} 31... b6 {[%clk 0:01:56.8]} 32. Rc2
{[%clk 0:01:08.7]} 32... Kf7 {[%clk 0:01:57]} 33. Rb5 {[%clk 0:01:09.4]} 33...
Ke6 {[%clk 0:01:56.4]} 34. Bc1 {[%clk 0:01:06.3]} 34... Kd7 {[%clk 0:01:53.5]}
35. Ke1 {[%clk 0:01:06.2]} 35... g5 {[%clk 0:01:53.6]} 36. Kd1 {[%clk
0:01:06.3]} 36... Bc7 {[%clk 0:01:52.5]} 37. Bd2 {[%clk 0:01:06]} 37... Kc6
{[%clk 0:01:46]} 38. Bc1 {[%clk 0:01:05]} 38... Rad8 {[%clk 0:01:43.1]} 39. Ke1
{[%clk 0:01:05.5]} 39... Rd5 {[%clk 0:01:42.3]} 40. Kf1 {[%clk 0:01:06.5]} 40...
Rg8 {[%clk 0:01:41.8]} 41. Kg2 {[%clk 0:01:06.4]} 41... h5 {[%clk 0:01:42.9]}
42. Bb2 {[%clk 0:01:06.7]} 42... f4 {[%clk 0:01:42.7]} 43. Rb3 {[%clk
0:01:01.6]} 43... Re8 {[%clk 0:01:36.3]} 44. Bc1 {[%clk 0:00:50.1]} 44... fxg3
{[%clk 0:01:37.4]} 45. fxg3 {[%clk 0:00:44.3]} 45... Rf5 {[%clk 0:01:37.1]} 46.
Bb2 {[%clk 0:00:34.3]} 46... Kd7 {[%clk 0:01:24.2]} 47. Bc1 {[%clk 0:00:33.3]}
47... h4 {[%clk 0:01:22.8]} 48. Rbb2 {[%clk 0:00:29.2]} 48... hxg3 {[%clk
0:01:23.8]} 49. hxg3 {[%clk 0:00:31.1]} 49... g4 {[%clk 0:01:25.3]} 50. Bd2
{[%clk 0:00:08.1]} 50... Ref8 {[%clk 0:01:23.8]} 51. Be1 {[%clk 0:00:07.1]}
51... Rh5 {[%clk 0:01:25]} 52. Bf2 {[%clk 0:00:03.5]} 52... Rfh8 {[%clk
0:01:23.1]} 53. Bg1 {[%clk 0:00:04.2]} 53... Rh2+ {[%clk 0:01:24.1]} 54. Bxh2
{[%clk 0:00:04.2]} 54... Rh3 {[%clk 0:01:23]} 55. Rb1 {[%clk 0:00:05.2]} 55...
Kc6 {[%clk 0:01:21.4]} 56. Re1 {[%clk 0:00:06.2]} 56... b5 {[%clk 0:01:20.5]}
57. axb5+ {[%clk 0:00:06.4]} 57... Kxb5 {[%clk 0:01:22]} 58. e3 {[%clk
0:00:08.3]} 58... dxe3 {[%clk 0:01:22.8]} 59. Rxe3 {[%clk 0:00:10.2]} 59... a4
{[%clk 0:01:24.4]} 60. Re4 {[%clk 0:00:11.2]} 60... Ba5 {[%clk 0:01:25.2]} 61.
Rxg4 {[%clk 0:00:10.8]} 61... Rh5 {[%clk 0:01:26.4]} 62. Rgc4 {[%clk 0:00:09.9]}
62... Rd5 {[%clk 0:01:26.4]} 63. Rb2+ {[%clk 0:00:08.3]} 63... Bb4 {[%clk
0:01:27.4]} 64. Rcc2 {[%clk 0:00:08]} 64... a3 {[%clk 0:01:26.3]} 65. Rb3 {[%clk
0:00:07.3]} 65... Ka4 {[%clk 0:01:25.7]} 66. Rb1 {[%clk 0:00:07.7]} 66... Rxd3
{[%clk 0:01:26.5]} 67. Bg1 {[%clk 0:00:07.5]} 67... Rb3 {[%clk 0:01:24.1]} 68.
Ra1 {[%clk 0:00:04.6]} 68... Kb5 {[%clk 0:01:22.6]} 69. g4 {[%clk 0:00:04.6]}
69... c4 {[%clk 0:01:13.4]} 70. g5 {[%clk 0:00:05]} 70... Rb2 {[%clk 0:01:06.3]}
71. Ra2 {[%clk 0:00:05.2]} 71... Bc3 {[%clk 0:00:44.3]} 72. g6 {[%clk
0:00:05.3]} 72... Kb4 {[%clk 0:00:42.1]} 73. Kf3 {[%clk 0:00:04.2]} 73... Bg7
{[%clk 0:00:39.2]} 74. Ke4 {[%clk 0:00:03.5]} 74... Kb3 {[%clk 0:00:35.8]} 75.
Rcxb2+ {[%clk 0:00:03.1]} 75... axb2 {[%clk 0:00:26.1]} 76. Rxb2+ {[%clk
0:00:03.5]} 76... Kxb2 {[%clk 0:00:25]} 77. Bd4+ {[%clk 0:00:05.2]} 77... Bxd4
{[%clk 0:00:26.1]} 78. Kxd4 {[%clk 0:00:07.1]} 78... c3 {[%clk 0:00:28]} 79. g7
{[%clk 0:00:09]} 79... c2 {[%clk 0:00:29.9]} 80. g8=Q {[%clk 0:00:10.9]} 80...
c1=Q {[%clk 0:00:29.7]} 81. Qb8+ {[%clk 0:00:12.4]} 81... Ka3 {[%clk 0:00:27.1]}
82. Qa7+ {[%clk 0:00:13.4]} 82... Kb4 {[%clk 0:00:28.5]} 83. Qb6+ {[%clk
0:00:13.8]} 83... Ka4 {[%clk 0:00:29.8]} 84. Qa6+ {[%clk 0:00:14.7]} 84... Kb4
{[%clk 0:00:31]} 85. Qb6+ {[%clk 0:00:15.6]} 1/2-1/2